bitfinex/quotes_SOLUSD_20240626
["timestamp","ask_amount","ask_price","bid_price","bid_amount"]
[1719386561719,7.2446,138.04,137.99,25.3628]
[1719386562050,7.2438,138.05,138.0,7.2463]
[1719386562347,25.03859363,138.04,138.0,7.2463]
[1719386562848,32.28309363,138.04,138.0,7.2463]
[1719386563724,25.03859363,138.04,138.01,7.2458]
[1719386563919,25.03859363,138.04,137.99,18.1163]
[1719386564742,25.03859363,138.04,138.0,7.2461]
[1719386565241,20.0,138.04,138.0,7.89604198]
[1719386565648,20.0,138.04,138.01,7.2455]
[1719386565956,20.0,138.04,138.02,7.2452]
[1719386566126,20.0,138.05,138.02,7.2452]
[1719386567661,27.2438,138.05,138.01,25.3601]
[1719386567866,27.2438,138.05,138.01,18.1143]
[1719386568242,27.2438,138.05,138.01,25.3597]
[1719386568444,20.0,138.05,138.01,25.3597]
[1719386568650,27.2438,138.05,138.01,25.3597]
[1719386568854,27.3809898,138.05,138.01,25.3597]
[1719386569855,27.3809898,138.05,138.01,18.1143]
[1719386570229,27.3809898,138.05,138.01,25.3601]
[1719386570842,0.1371898,138.05,138.03,33.5386]
[1719386571159,0.1371898,138.05,138.04,7.2442]
[1719386571370,0.1371898,138.05,138.03,33.5386]
[1719386571669,0.1371898,138.05,138.03,40.7833]
[1719386572047,0.1371898,138.05,138.03,33.5386]
[1719386572350,0.1371898,138.05,138.04,3.54139834]
[1719386572661,0.1371898,138.05,138.03,37.499454]
[1719386572848,0.1371898,138.05,138.02,6.3132]
[1719386573054,0.1371898,138.05,138.02,6.27366158]
[1719386573270,7.3809898,138.05,138.02,6.27366158]
[1719386573455,0.1371898,138.05,138.02,13.51886158]
[1719386574466,0.1371898,138.05,138.03,14.96547161]
[1719386574835,5.17578343,138.05,138.02,18.113]
[1719386575042,7.3809898,138.05,138.02,18.113]
[1719386575643,0.1371898,138.05,138.02,25.3581]
[1719386576043,12.41968343,138.05,138.02,18.113]
[1719386576243,5.17578343,138.05,137.99,18.1164]
[1719386576443,7.2451,138.03,137.99,25.3632]
[1719386576649,27.2444,138.04,137.99,25.3632]
[1719386576868,27.2444,138.04,138.0,7.2463]
[1719386577557,5.03859363,138.03,138.0,7.2463]
[1719386578749,20.0,138.04,138.0,3.65654815]
[1719386578968,20.0,138.04,138.02,7.2453]
[1719386579166,20.0,138.04,138.03,7.2448]
[1719386579666,20.0,138.04,138.01,25.36]
[1719386580370,0.1371898,138.05,138.02,7.2448]
[1719386580756,20.1371898,138.05,138.03,7.2446]
[1719386580950,0.1371898,138.05,138.03,7.2446]
[1719386582047,0.1371898,138.05,138.02,7.2451]
[1719386582251,0.1371898,138.05,138.03,18.1118]
[1719386582455,0.1371898,138.05,138.04,7.2442]
[1719386585465,0.1371898,138.05,138.03,25.3564]
[1719386585768,0.1371898,138.05,138.04,7.2442]
[1719386587566,0.1371898,138.05,138.04,11.12813462]
[1719386587772,0.1371898,138.05,138.04,7.2442]
[1719386589077,0.1371898,138.05,138.04,8.04965049]
[1719386589653,0.1371898,138.05,138.04,9.55910329]
[1719386590069,0.1371898,138.05,138.04,11.00873664]
[1719386590255,0.1371898,138.05,138.04,7.2442]
[1719386590469,0.1371898,138.05,138.04,7.5842]
[1719386591266,0.1371898,138.05,138.04,7.2442]
[1719386591577,0.1371898,138.05,138.04,7.5842]
[1719386591960,0.1371898,138.05,138.04,11.60563787]
[1719386592160,8.74652316,138.14,138.06,36.2151]
[1719386592161,5.03859363,138.14,138.06,36.2151]
[1719386592368,0.8668253,138.15,138.14,7.239]
[1719386594478,0.8668253,138.15,138.14,7.579]
[1719386594679,0.8668253,138.15,138.14,7.239]
[1719386596860,0.8668253,138.15,138.14,7.409]
[1719386597054,0.8668253,138.15,138.14,7.239]
[1719386601987,0.8668253,138.15,138.09,52.1022]
[1719386602192,0.8668253,138.15,138.14,7.239]
[1719386605586,0.8668253,138.15,138.14,13.6608]
[1719386605888,0.8668253,138.15,138.14,7.239]
[1719386608786,0.8668253,138.15,138.13,18.0986]
[1719386608986,0.8668253,138.15,138.14,7.239]
[1719386611897,0.8668253,138.15,138.14,8.68920881]
[1719386612305,0.8668253,138.15,138.14,7.239]
[1719386614403,0.8668253,138.15,138.08,7.242]
[1719386614404,7.2396,138.13,138.08,7.242]
[1719386614706,7.2396,138.13,138.08,25.3469]
[1719386615001,20.0,138.12,138.08,25.3469]
[1719386615349,32.27859363,138.12,138.08,25.3469]
[1719386615489,32.27859363,138.12,138.08,18.1049]
[1719386615671,7.2411,138.1,138.06,7.2431]
[1719386615871,7.2406,138.11,138.06,7.2431]
[1719386616105,20.0,138.1,138.06,7.2431]
[1719386616314,20.0,138.1,138.07,7.2426]
[1719386616483,20.0,138.1,138.08,7.2421]
[1719386616801,27.2408,138.11,138.07,7.2426]
[1719386617000,27.2408,138.11,138.06,7.2432]
[1719386617575,32.27939363,138.11,138.06,7.2432]
[1719386617776,7.2411,138.1,138.06,7.2432]
[1719386618202,7.2402,138.12,138.07,18.1063]
[1719386618404,7.2402,138.12,138.08,7.242]
[1719386619003,7.2406,138.11,138.07,25.3489]
[1719386619216,7.2402,138.12,138.07,25.3489]
[1719386620691,7.2406,138.11,138.07,25.3489]
[1719386621395,7.2406,138.11,138.08,0.62362378]
[1719386622203,7.2406,138.11,138.07,25.3489]
[1719386622403,7.2402,138.12,138.07,25.3489]
[1719386622713,7.2396,138.13,138.07,18.1063]
[1719386622915,20.0,138.12,138.09,7.2415]
[1719386623216,7.239,138.14,138.1,7.241]
[1719386623711,7.239,138.14,138.1,1.61539548]
[1719386623923,7.2396,138.13,138.1,1.61539548]
[1719386624421,7.2396,138.13,138.1,2.31905542]
[1719386625222,7.2396,138.13,138.1,3.7640369]
[1719386625602,5.90541893,138.15,138.11,18.101]
[1719386625603,0.8668253,138.15,138.11,18.101]
[1719386625914,7.2392,138.14,138.1,7.2407]
[1719386626115,0.8668253,138.15,138.11,1.44633576]
[1719386626291,0.8668253,138.15,138.11,8.68683576]
[1719386626493,0.8668253,138.15,138.1,25.3432]
[1719386626717,8.1056253,138.15,138.1,25.3432]
[1719386627089,7.239,138.14,138.1,25.3432]
[1719386629025,8.1054253,138.15,138.1,25.3432]
[1719386630120,12.27759363,138.14,138.1,18.1022]
[1719386631025,12.27769363,138.14,138.1,18.1022]
[1719386631520,5.03859363,138.14,138.09,7.2415]
[1719386631727,7.2398,138.13,138.09,7.2415]
[1719386631929,7.2392,138.14,138.09,7.2415]
[1719386632524,7.2392,138.14,138.1,7.2411]
[1719386632824,5.90541893,138.15,138.09,18.1039]
[1719386632825,7.2402,138.12,138.09,18.1039]
[1719386633614,12.27929363,138.11,138.07,7.2426]
[1719386635749,5.03859363,138.11,138.07,7.2426]
[1719386635921,12.27929363,138.11,138.07,7.2426]
[1719386636118,5.03859363,138.11,138.07,7.2426]
[1719386636427,7.2402,138.12,138.08,7.2421]
[1719386636619,25.03859363,138.11,138.07,7.2425]
[1719386636816,20.0,138.11,138.08,18.1051]
[1719386637234,20.0,138.13,138.1,25.3435]
[1719386638041,25.03859363,138.13,138.08,7.2418]
[1719386638441,7.2401,138.12,138.08,7.2418]
[1719386638645,5.03859363,138.11,138.08,7.2418]
[1719386639119,5.03859363,138.12,138.09,7.2414]
[1719386639440,25.03859363,138.13,138.1,7.2411]
[1719386639635,32.27829363,138.13,138.07,18.1058]
[1719386639825,25.03859363,138.13,138.09,18.1036]
[1719386640018,25.03859363,138.13,138.09,25.345]
[1719386640217,25.03859363,138.13,138.09,25.32391093]
[1719386640447,32.27829363,138.13,138.09,25.32391093]
[1719386641530,32.27829363,138.13,138.09,18.08251093]
[1719386641729,25.03859363,138.13,138.09,18.08251093]
[1719386642040,25.03859363,138.13,138.09,25.32391093]
[1719386643244,32.27809363,138.13,138.09,25.32391093]
[1719386643445,5.03859363,138.12,138.09,25.32391093]
[1719386646235,5.03859363,138.12,138.07,7.2421]
[1719386646236,12.27879363,138.12,138.07,7.2421]
[1719386646429,20.0,138.11,138.07,7.2421]
[1719386646630,5.03859363,138.1,138.07,7.2421]
[1719386647146,5.03859363,138.1,138.03,18.1109]
[1719386647147,1.872,138.09,138.03,18.1109]
[1719386647346,5.03859363,138.08,138.03,18.1109]
[1719386647649,25.03859363,138.07,138.04,7.2441]
[1719386647944,12.28129363,138.07,138.03,25.3555]
[1719386648151,5.03859363,138.07,138.04,7.2442]
[1719386648731,5.03859363,138.07,138.03,25.3555]
[1719386649236,12.28129363,138.07,138.03,25.3555]
[1719386649438,5.03859363,138.06,138.03,25.3555]
[1719386649935,12.28079363,138.08,138.04,7.2442]
[1719386650135,25.03859363,138.07,138.04,7.2442]
[1719386650532,25.03859363,138.07,138.03,25.3555]
[1719386650731,32.28129363,138.07,138.03,25.3555]
[1719386651749,32.28129363,138.07,138.03,18.1109]
[1719386652062,32.28129363,138.07,138.03,25.3556]
[1719386652942,32.28129363,138.07,138.03,18.1109]
[1719386653252,32.28129363,138.07,138.03,25.3555]
[1719386653549,7.2432,138.06,138.01,7.2456]
[1719386654359,7.2432,138.06,138.02,7.2452]
[1719386654562,32.28139363,138.07,138.02,7.2452]
[1719386655645,32.28139363,138.07,138.03,7.2447]
[1719386656042,20.0,138.07,138.04,7.244]
[1719386656443,5.03859363,138.08,138.0,16.5867]
[1719386656645,6.91059363,138.13,138.07,7.2425]
[1719386656944,20.0,138.12,138.07,7.2425]
[1719386657170,5.03859363,138.11,138.06,25.3508]
[1719386657458,20.0,138.1,138.06,25.3508]
[1719386658460,20.0,138.1,138.07,7.2426]
[1719386658641,6.91059363,138.13,138.08,18.1051]
[1719386658968,7.2406,138.11,138.07,7.2426]
[1719386659263,12.27989363,138.1,138.05,25.3518]
[1719386659466,7.2416,138.09,138.05,25.3518]
[1719386659969,7.2413,138.1,138.05,25.3518]
[1719386660265,20.0,138.12,138.06,7.2431]
[1719386660437,7.2409,138.11,138.07,7.2427]
[1719386660637,25.03859363,138.1,138.07,7.2427]
[1719386661064,25.03859363,138.1,138.06,7.243]
[1719386661539,14.15039363,138.13,138.07,18.1062]
[1719386661743,27.2404,138.12,138.08,7.242]
[1719386663957,14.15029363,138.13,138.09,7.2415]
[1719386664343,20.0,138.12,138.09,7.2415]
[1719386664964,20.0,138.12,138.08,7.242]
[1719386665443,27.2402,138.12,138.08,7.242]
[1719386666362,0.8668253,138.15,138.09,18.1037]
[1719386666544,28.1055253,138.15,138.11,7.2402]
[1719386666752,20.8668253,138.15,138.12,7.24]
[1719386667250,0.8668253,138.15,138.12,7.24]
[1719386668850,0.8668253,138.15,138.11,18.1013]
[1719386669037,8.1056253,138.15,138.11,18.1013]
[1719386669867,8.1056253,138.15,138.11,25.3415]
[1719386670165,8.1056253,138.15,138.12,7.2399]
[1719386670166,0.8668253,138.15,138.12,7.2399]
[1719386672054,13.14401893,138.15,138.11,25.3417]
[1719386672371,13.14401893,138.15,138.12,7.2399]
[1719386672372,5.90541893,138.15,138.12,7.2399]
[1719386672677,5.90541893,138.15,138.11,18.1013]
[1719386672856,13.14391893,138.15,138.11,25.3414]
[1719386673255,13.14391893,138.15,138.04,111.9611]
[1719386673256,5.90541893,138.15,138.05,15.0754]
[1719386673457,20.0,138.14,138.05,15.0754]
[1719386673668,5.03859363,138.13,138.06,26.47]
[1719386673876,5.03859363,138.13,138.09,18.1039]
[1719386674054,7.2391,138.14,138.1,7.2407]
[1719386674253,20.0,138.13,138.1,7.2407]
[1719386674455,20.0,138.13,138.09,25.3453]
[1719386674456,27.2395,138.13,138.09,25.3453]
[1719386674756,7.24,138.12,138.09,18.1039]
[1719386675480,32.27829363,138.13,138.09,25.3455]
[1719386677456,7.2401,138.12,138.08,7.242]
[1719386677755,27.2397,138.13,138.09,7.2416]
[1719386677977,5.03859363,138.12,138.09,7.2416]
[1719386678181,20.0,138.13,138.1,7.2409]
[1719386678352,20.0,138.14,138.12,7.2395]
[1719386678661,20.0,138.14,138.13,7.2395]
[1719386679473,20.0,138.14,138.12,25.3396]
[1719386679654,20.8668253,138.15,138.12,25.3396]
[1719386680764,28.1054253,138.15,138.11,7.2405]
[1719386681279,5.03859363,138.14,138.09,18.103]
[1719386681453,7.2402,138.12,138.09,18.103]
[1719386682377,7.2397,138.13,138.09,25.3446]
[1719386682678,20.0,138.12,138.09,25.3446]
[1719386683063,20.0,138.12,138.1,7.241]
[1719386683259,20.0,138.13,138.1,7.241]
[1719386683889,27.2395,138.13,138.09,25.3444]
[1719386684263,32.27809363,138.13,138.09,25.3444]
[1719386684471,27.2395,138.13,138.09,25.3444]
[1719386687363,12.27869363,138.12,138.09,18.103]
[1719386688969,27.2406,138.11,138.07,7.2425]
[1719386689487,32.27919363,138.11,138.07,7.2425]
[1719386689980,27.2406,138.11,138.07,7.2425]
[1719386690188,20.0,138.11,138.08,7.242]
[1719386690435,25.03859363,138.11,138.08,7.242]
[1719386691168,32.27919363,138.11,138.07,7.2425]
[1719386691369,27.2406,138.11,138.07,7.2425]
[1719386691802,20.0,138.11,138.08,7.242]
[1719386691978,25.03859363,138.11,138.08,7.242]
[1719386692487,25.03859363,138.11,138.06,18.1071]
[1719386692693,20.0,138.11,138.06,18.1071]
[1719386692866,20.0,138.13,138.06,18.1071]
[1719386693066,5.03859363,138.12,138.06,18.1071]
[1719386693267,20.0,138.11,138.08,7.2421]
[1719386694292,27.2406,138.11,138.07,7.2424]
[1719386694497,20.0,138.11,138.09,7.2414]
[1719386694807,32.27869363,138.12,138.08,25.347]
[1719386695095,7.2401,138.12,138.08,25.347]
[1719386695388,5.03859363,138.14,138.07,7.2425]
[1719386695389,27.2406,138.11,138.07,7.2425]
[1719386695592,7.2411,138.1,138.06,7.2428]
[1719386696194,12.27969363,138.1,138.06,7.2428]
[1719386696403,20.0,138.09,138.05,33.1839]
[1719386696574,7.2422,138.08,138.05,33.1839]
[1719386697091,27.2418,138.09,138.05,40.4276]
[1719386697589,27.2418,138.09,138.05,25.3522]
[1719386697792,12.28089363,138.08,138.04,7.2438]
[1719386697994,5.03859363,138.08,138.05,7.2437]
[1719386698364,27.2418,138.09,138.05,7.2436]
[1719386698569,5.03859363,138.08,138.05,7.2436]
[1719386698975,12.28079363,138.08,138.04,25.3545]
[1719386699206,27.2418,138.09,138.05,7.2437]
[1719386699699,20.0,138.09,138.06,7.2431]
[1719386700198,27.2418,138.09,138.05,7.2437]
[1719386700407,12.28079363,138.08,138.04,25.3545]
[1719386700596,5.03859363,138.08,138.05,7.2437]
[1719386701592,27.2418,138.09,138.05,7.2437]
[1719386701795,27.2418,138.09,138.05,8.56632823]
[1719386702298,12.28079363,138.08,138.04,25.3545]
[1719386702804,7.2422,138.08,138.04,25.3545]
[1719386703503,25.03859363,138.09,138.04,18.1104]
[1719386703791,12.28069363,138.08,138.04,25.3542]
[1719386704180,7.2421,138.08,138.04,25.3542]
[1719386704371,7.2421,138.08,138.05,1.32712072]
[1719386704907,7.2421,138.08,138.04,25.3542]
[1719386705205,32.28029363,138.09,138.05,7.2437]
[1719386705442,27.2417,138.09,138.06,7.2432]
[1719386705579,20.0,138.09,138.06,7.2432]
[1719386706004,27.2416,138.09,138.05,7.2435]
[1719386706201,20.0,138.09,138.06,7.2431]
[1719386706590,20.0,138.09,138.07,7.2426]
[1719386706901,20.0,138.08,138.07,7.2426]
[1719386707491,5.03859363,138.14,138.08,18.1051]
[1719386707803,7.2412,138.1,138.06,7.2431]
[1719386709206,7.2427,138.07,138.03,7.2444]
[1719386709414,5.03859363,138.08,138.02,18.1123]
[1719386709605,7.243,138.07,138.03,7.2444]
[1719386709918,5.03859363,138.07,138.01,22.5603]
[1719386710302,12.28139363,138.07,138.03,7.2447]
[1719386710488,5.03859363,138.07,138.01,40.6744]
[1719386710692,7.2433,138.06,138.02,7.2449]
[1719386710917,5.03859363,138.07,138.01,47.9201]
[1719386711092,12.28139363,138.07,138.01,40.6744]
[1719386712318,12.28139363,138.07,138.03,7.2446]
[1719386713194,25.03859363,138.09,138.03,18.1114]
[1719386713507,32.28059363,138.09,138.04,7.2439]
[1719386714214,32.28059363,138.09,138.05,7.2435]
[1719386714390,25.03859363,138.09,138.05,7.2435]
[1719386714596,27.2418,138.09,138.04,7.244]
[1719386714897,5.03859363,138.08,138.04,7.244]
[1719386715218,20.0,138.07,138.05,7.2436]
[1719386715430,27.2418,138.09,138.05,7.2436]
[1719386715618,32.28039363,138.09,138.05,7.2436]
[1719386716590,32.28039363,138.09,138.04,7.244]
[1719386716797,25.03859363,138.09,138.03,18.1114]
[1719386717011,43.14319363,138.09,138.01,22.5603]
[1719386717298,7.2433,138.06,138.02,7.2451]
[1719386718821,5.03859363,138.08,138.0,18.1149]
[1719386718822,7.2438,138.05,138.0,18.1149]
[1719386719117,7.2443,138.04,138.0,18.1149]
[1719386719315,7.2439,138.05,138.01,7.2458]
[1719386719902,12.28189363,138.06,138.01,7.2458]
[1719386720103,25.03859363,138.05,138.01,7.2458]
[1719386720736,25.03859363,138.05,138.02,7.2452]
[1719386721114,25.03859363,138.05,138.01,7.2457]
[1719386721723,20.0,138.05,138.02,7.2452]
[1719386722108,20.0,138.06,138.02,7.2452]
[1719386722533,27.2432,138.06,138.02,7.2452]
[1719386723833,5.03859363,138.05,138.01,7.2456]
[1719386725402,12.28239363,138.05,138.01,7.2456]
[1719386725607,5.03859363,138.04,138.0,25.3612]
[1719386725802,5.03859363,138.04,138.01,7.2458]
[1719386726017,12.28239363,138.05,138.01,7.2458]
[1719386726232,5.03859363,138.05,138.01,7.2458]
[1719386727026,5.03859363,138.05,138.02,7.2452]
[1719386727231,20.0,138.06,138.03,7.2447]
[1719386727417,5.03859363,138.09,138.06,7.2431]
[1719386727621,5.03859363,138.09,138.05,7.2435]
[1719386727908,20.0,138.08,138.05,7.2435]
[1719386728109,20.0,138.08,138.04,25.3539]
[1719386729334,20.0,138.08,138.02,23.2431]
[1719386729535,12.28139363,138.07,138.02,23.2431]
[1719386730033,7.2428,138.07,138.03,7.2447]
[1719386730606,32.28089363,138.08,138.03,7.2447]
[1719386731034,7.2429,138.07,138.03,7.2447]
[1719386731206,12.28149363,138.07,138.03,7.2447]
[1719386731640,7.2433,138.06,138.02,7.2453]
[1719386731935,20.0,138.05,138.03,0.7789772]
[1719386732315,20.0,138.05,138.03,7.2444]
[1719386732508,5.03859363,138.07,138.03,7.2444]
[1719386732509,20.0,138.06,138.03,7.2444]
[1719386732709,20.0,138.06,138.02,7.2451]
[1719386733939,27.2433,138.06,138.02,7.2451]
[1719386734126,20.0,138.06,138.02,7.2451]
[1719386734831,27.2432,138.06,138.02,7.2451]
[1719386736024,20.0,138.06,138.03,7.2444]
[1719386736229,12.28019363,138.09,138.03,18.1114]
[1719386736541,20.0,138.08,138.03,18.1114]
[1719386737338,20.0,138.08,138.05,7.2436]
[1719386737531,12.28019363,138.09,138.05,7.2436]
[1719386737717,7.2422,138.08,138.04,7.2441]
[1719386737918,7.2417,138.09,138.05,7.2436]
[1719386738113,5.03859363,138.12,138.06,7.2431]
[1719386738534,7.2412,138.1,138.07,1.44640845]
[1719386739439,7.2416,138.09,138.05,25.3526]
[1719386739640,7.2422,138.08,138.05,18.109]
[1719386740022,18.1036,138.1,138.02,25.3573]
[1719386740233,7.2435,138.06,138.02,25.3573]
[1719386741340,7.2438,138.05,138.02,18.1125]
[1719386741516,5.03859363,138.09,138.02,18.1125]
[1719386742438,7.2434,138.06,138.02,25.3578]
[1719386742640,7.2428,138.07,138.03,7.2447]
[1719386742970,7.2428,138.07,138.02,25.3576]
[1719386743517,7.2428,138.07,138.03,7.2446]
[1719386745345,7.2442,138.04,138.0,29.2057]
[1719386745523,7.2432,138.06,138.02,7.2451]
[1719386748341,7.2437,138.05,138.01,25.3596]
[1719386748537,5.03859363,138.08,138.01,18.114]
[1719386748741,7.2435,138.06,138.02,7.2452]
[1719386749364,5.03859363,138.07,138.0,21.9595]
[1719386749554,1.872,138.08,138.0,21.9595]
[1719386749758,18.2769,138.07,137.98,18.1179]
[1719386749941,18.2769,138.07,137.99,7.2465]
[1719386749942,7.2448,138.03,137.99,7.2465]
[1719386750141,7.2444,138.04,138.0,7.2463]
[1719386750839,7.2457,138.02,137.98,7.2469]
[1719386751169,7.2454,138.02,137.98,7.2473]
[1719386751538,7.246,138.01,137.97,23.7658]
[1719386751844,7.2464,138.0,137.96,31.5596]
[1719386752269,7.2456,138.02,137.97,7.2478]
[1719386752573,5.03859363,138.04,137.97,7.2478]
[1719386752574,12.28449363,138.01,137.97,7.2478]
[1719386753241,12.28449363,138.01,137.96,18.1208]
[1719386753242,7.2467,138.0,137.96,18.1208]
[1719386753548,12.28559363,137.99,137.96,18.1208]
[1719386753740,5.03859363,137.99,137.93,40.8922]
[1719386753940,7.247,137.99,137.93,40.8922]
[1719386754147,7.247,137.99,137.95,7.2489]
[1719386754368,7.2465,138.0,137.95,7.2489]
[1719386755145,5.03859363,137.99,137.94,7.2491]
[1719386755344,7.2479,137.97,137.93,18.1243]
[1719386755658,7.2486,137.96,137.91,7.251]
[1719386755850,7.2486,137.96,137.92,7.2505]
[1719386756673,7.2481,137.97,137.92,7.2505]
[1719386757160,5.03859363,137.96,137.92,7.2505]
[1719386757471,7.2481,137.97,137.92,7.2505]
[1719386757667,25.9611781,138.01,137.9,34.7027]
[1719386757877,28.1860781,138.0,137.9,34.7027]
[1719386758059,0.8459,137.99,137.9,18.1283]
[1719386758268,0.34,137.98,137.9,18.1283]
[1719386758476,5.37859363,137.98,137.9,18.1283]
[1719386758773,20.0,137.97,137.9,18.1283]
[1719386758946,7.2496,137.94,137.9,18.1283]
[1719386759147,5.03859363,137.96,137.9,18.1283]
[1719386759366,7.2491,137.95,137.91,7.2509]
[1719386759562,12.28769363,137.95,137.91,7.2509]
[1719386759948,12.28769363,137.95,137.9,25.3798]
[1719386760477,5.03859363,137.94,137.91,7.251]
[1719386762051,5.03859363,137.96,137.92,7.2505]
[1719386762250,25.03859363,137.97,137.92,7.2505]
[1719386762470,7.2489,137.96,137.91,7.251]
[1719386762767,5.03859363,137.95,137.91,7.251]
[1719386763279,12.28749363,137.96,137.92,7.2503]
[1719386763579,5.03859363,137.95,137.92,7.2504]
[1719386763753,5.03859363,137.95,137.9,18.1283]
[1719386763954,5.03859363,137.95,137.91,7.2509]
[1719386764274,12.28789363,137.95,137.91,7.2509]
[1719386764651,7.2497,137.94,137.9,25.3798]
[1719386765549,7.2491,137.95,137.91,7.2509]
[1719386765782,12.28809363,137.94,137.9,18.1283]
[1719386766675,20.0,137.97,137.91,7.2509]
[1719386766859,12.28739363,137.96,137.9,18.1283]
[1719386767171,5.03859363,137.95,137.92,7.2504]
[1719386767380,5.03859363,137.95,137.91,7.2509]
[1719386767684,5.03859363,137.95,137.92,7.2504]
[1719386767852,12.28739363,137.96,137.91,7.2509]
[1719386768256,5.03859363,137.95,137.9,25.3799]
[1719386769373,7.2495,137.94,137.9,25.3799]
[1719386769762,7.2491,137.95,137.91,7.2506]
[1719386770591,7.2488,137.96,137.92,25.3765]
[1719386770877,7.2488,137.96,137.92,18.126]
[1719386771057,20.0,137.98,137.92,18.126]
[1719386771058,12.28769363,137.95,137.92,18.126]
[1719386771386,7.2491,137.95,137.91,7.2509]
[1719386771682,7.2496,137.94,137.9,7.2514]
[1719386771981,7.2503,137.93,137.89,31.405]
[1719386772181,7.2497,137.94,137.89,31.405]
[1719386773173,7.2497,137.94,137.9,7.2516]
[1719386773487,7.25,137.93,137.89,31.4049]
[1719386774158,19.994,137.96,137.87,16.484]
[1719386774361,25.37859363,137.95,137.87,23.7367]
[1719386774559,7.2507,137.92,137.88,7.2524]
[1719386774755,7.2496,137.94,137.9,7.2515]
[1719386774972,12.28879363,137.93,137.89,7.2519]
[1719386775173,5.03859363,137.93,137.89,7.2519]
[1719386775382,12.28769363,137.95,137.9,18.1283]
[1719386775554,12.28769363,137.95,137.91,7.2506]
[1719386775555,7.2491,137.95,137.91,7.2506]
[1719386775868,7.2486,137.96,137.91,7.2506]
[1719386776069,7.249,137.95,137.91,7.2506]
[1719386776280,5.03859363,137.94,137.88,7.2524]
[1719386776484,12.28899363,137.93,137.89,7.252]
[1719386776870,7.2507,137.92,137.88,7.2525]
[1719386777595,7.2502,137.93,137.88,7.2525]
[1719386778273,7.2506,137.92,137.87,34.6164]
[1719386778665,7.2506,137.92,137.88,7.2522]
[1719386779079,7.2502,137.93,137.88,7.2522]
[1719386780067,7.2496,137.94,137.89,18.1301]
[1719386780382,7.2492,137.95,137.91,7.2509]
[1719386780576,20.0,137.94,137.91,7.2509]
[1719386780776,32.28809363,137.94,137.9,7.2514]
[1719386781165,12.28749363,137.96,137.92,7.2505]
[1719386781365,20.0,137.95,137.92,7.2505]
[1719386781873,20.0,137.95,137.91,25.3781]
[1719386781874,27.249,137.95,137.91,25.3781]
[1719386783369,7.2495,137.94,137.91,18.1272]
[1719386784283,20.0,137.95,137.91,25.3783]
[1719386784284,27.2492,137.95,137.91,25.3783]
[1719386784491,7.2492,137.95,137.91,25.3783]
[1719386785085,7.2495,137.94,137.91,18.1272]
[1719386785286,5.03859363,137.96,137.91,18.1272]
[1719386785794,7.2495,137.94,137.9,13.668]
[1719386786966,12.28769363,137.95,137.9,13.668]
[1719386787166,7.2491,137.95,137.9,13.668]
[1719386787398,12.28769363,137.95,137.9,13.668]
[1719386787567,5.03859363,137.95,137.9,6.4166]
[1719386787876,7.2501,137.93,137.89,7.2519]
[1719386788265,7.2497,137.94,137.9,7.2515]
[1719386788763,12.28769363,137.95,137.88,0.17]
[1719386788970,12.28769363,137.95,137.91,7.251]
[1719386789267,7.2496,137.94,137.9,18.1288]
[1719386790115,5.03859363,137.93,137.87,16.484]
[1719386790277,23.16029363,137.96,137.87,16.484]
[1719386790471,25.03859363,137.95,137.87,16.484]
[1719386791382,7.2496,137.94,137.88,18.1312]
[1719386791993,25.03859363,137.95,137.88,18.1312]
[1719386791994,12.28859363,137.93,137.89,7.252]
[1719386793805,5.03859363,137.93,137.89,7.252]
[1719386794005,5.03859363,137.92,137.81,5.76118684]
[1719386794194,7.2536,137.87,137.82,7.2554]
[1719386794510,20.0,137.86,137.81,18.1399]
[1719386794693,20.0,137.86,137.82,7.2555]